[Event "NJSK 2023 Jeugd C"]
[Site "Almelo, Netherlands"]
[Date "2023.05.06"]
[Round "9.14"]
[White "Zootjes, Aäron"]
[Black "Chua, Ethan"]
[Result "0-1"]
[TimeControl "90min/40moves + 30min + 30sec/move"]
[WhiteElo "1172"]
[BlackElo "1776"]

1. e4 {[%clk 01:30:56]} {[%emt 00:00:03]} c6 {[%clk 01:30:53]} {[%emt
00:00:08]} 2. d4 {[%clk 01:31:17]} {[%emt 00:00:08]} d5 {[%clk 01:31:21]}
{[%emt 00:00:03]} 3. exd5 {[%clk 01:31:39]} {[%emt 00:00:08]} cxd5 {[%clk
01:31:47]} {[%emt 00:00:04]} 4. c4 {[%clk 01:31:58]} {[%emt 00:00:10]} Nf6
{[%clk 01:32:14]} {[%emt 00:00:04]} 5. Nf3 {[%clk 01:32:14]} {[%emt 00:00:14]}
Bg4 {[%clk 01:32:35]} {[%emt 00:00:08]} 6. Nc3 {[%clk 01:32:01]} {[%emt
00:00:43]} e6 {[%clk 01:32:41]} {[%emt 00:00:24]} 7. h3 {[%clk 01:31:59]}
{[%emt 00:00:32]} Bh5 {[%clk 01:32:42]} {[%emt 00:00:30]} 8. Bf4 {[%clk
01:32:07]} {[%emt 00:00:21]} Nc6 {[%clk 01:32:26]} {[%emt 00:00:47]} 9. c5
{[%clk 01:30:19]} {[%emt 00:02:18]} Ne4 {[%clk 01:22:34]} {[%emt 00:10:22]} 10.
Nb5 {[%clk 01:25:42]} {[%emt 00:05:06]} Rc8 {[%clk 01:22:35]} {[%emt 00:00:29]}
11. g4 {[%clk 01:23:05]} {[%emt 00:03:08]} Bg6 {[%clk 01:22:40]} {[%emt
00:00:24]} 12. Qa4 {[%clk 01:22:15]} {[%emt 00:01:21]} a6 {[%clk 01:19:58]}
{[%emt 00:03:12]} 13. Na7 {[%clk 01:21:01]} {[%emt 00:01:43]} Qf6 {[%clk
01:04:18]} {[%emt 00:16:10]} 14. Nxc8 {[%clk 01:16:18]} {[%emt 00:05:13]} Qxf4
{[%clk 01:04:25]} {[%emt 00:00:24]} 15. Bg2 {[%clk 01:14:44]} {[%emt 00:02:04]}
e5 {[%clk 01:01:40]} {[%emt 00:03:15]} 16. O-O {[%clk 01:14:23]} {[%emt
00:00:50]} exd4 {[%clk 01:00:11]} {[%emt 00:01:59]} 17. Nxd4 {[%clk 01:11:38]}
{[%emt 00:03:15]} Bxc5 {[%clk 00:59:43]} {[%emt 00:00:59]} 18. Bxe4 {[%clk
01:09:28]} {[%emt 00:02:40]} Bxe4 {[%clk 00:59:36]} {[%emt 00:00:37]} 19. Nxc6
{[%clk 01:09:00]} {[%emt 00:00:57]} Qg3# {[%emt 00:00:42]} 0-1

[Event "NJSK 2023 Jeugd C"]
[Site "Almelo, Netherlands"]
[Date "2023.05.06"]
[Round "9.15"]
[White "Verwer, Oscar"]
[Black "Frederiks, Jesse"]
[Result "0-1"]
[TimeControl "90min/40moves + 30min + 30sec/move"]
[WhiteElo "1549"]
[BlackElo "1510"]

1. e4 {[%clk 01:30:58]} {[%emt 00:00:01]} e6 {[%clk 01:30:54]} {[%emt
00:00:07]} 2. Nf3 {[%clk 01:31:23]} {[%emt 00:00:05]} d5 {[%clk 01:31:20]}
{[%emt 00:00:04]} 3. e5 {[%clk 01:31:49]} {[%emt 00:00:04]} c5 {[%clk
01:31:43]} {[%emt 00:00:06]} 4. b4 {[%clk 01:32:09]} {[%emt 00:00:10]} c4
{[%clk 01:31:40]} {[%emt 00:00:33]} 5. c3 {[%clk 01:32:09]} {[%emt 00:00:31]}
Ne7 {[%clk 01:31:26]} {[%emt 00:00:43]} 6. d3 {[%clk 01:30:00]} {[%emt
00:02:40]} cxd3 {[%clk 01:30:40]} {[%emt 00:01:16]} 7. Bxd3 {[%clk 01:30:24]}
{[%emt 00:00:08]} Ng6 {[%clk 01:30:48]} {[%emt 00:00:21]} 8. Nbd2 {[%clk
01:28:30]} {[%emt 00:02:23]} Qc7 {[%clk 01:29:55]} {[%emt 00:01:24]} 9. Bb2
{[%clk 01:22:07]} {[%emt 00:06:52]} Nc6 {[%clk 01:27:16]} {[%emt 00:03:10]} 10.
Bc2 {[%clk 01:16:05]} {[%emt 00:06:33]} Ncxe5 {[%clk 01:25:01]} {[%emt
00:02:44]} 11. O-O {[%clk 01:15:03]} {[%emt 00:01:31]} Bd6 {[%clk 01:24:15]}
{[%emt 00:01:17]} 12. Rc1 {[%clk 01:06:05]} {[%emt 00:09:27]} O-O {[%clk
01:22:53]} {[%emt 00:01:52]} 13. Nxe5 {[%clk 01:06:10]} {[%emt 00:00:26]} Bxe5
{[%clk 01:21:38]} {[%emt 00:01:45]} 14. Nf3 {[%clk 01:03:55]} {[%emt 00:02:44]}
Bf6 {[%clk 01:21:11]} {[%emt 00:00:57]} 15. Qd2 {[%clk 01:01:43]} {[%emt
00:02:42]} Bd7 {[%clk 01:18:01]} {[%emt 00:03:39]} 16. Rfd1 {[%clk 01:00:57]}
{[%emt 00:01:16]} Bb5 {[%clk 01:16:36]} {[%emt 00:01:55]} 17. Qe3 {[%clk
00:55:07]} {[%emt 00:06:20]} Bc4 {[%clk 01:12:57]} {[%emt 00:04:09]} 18. Bb3
{[%clk 00:54:16]} {[%emt 00:01:21]} b5 {[%clk 01:12:18]} {[%emt 00:01:09]} 19.
Nd4 {[%clk 00:46:16]} {[%emt 00:08:30]} Rfc8 {[%clk 00:59:41]} {[%emt
00:13:07]} 20. Re1 {[%clk 00:41:24]} {[%emt 00:05:22]} Qf4 {[%clk 00:58:38]}
{[%emt 00:01:33]} 21. Qh3 {[%clk 00:37:18]} {[%emt 00:04:36]} Qh4 {[%clk
00:55:52]} {[%emt 00:03:16]} 22. Qxh4 {[%clk 00:33:40]} {[%emt 00:04:08]} Bxh4
{[%clk 00:55:56]} {[%emt 00:00:26]} 23. Bxc4 {[%clk 00:30:41]} {[%emt
00:03:30]} bxc4 {[%clk 00:56:16]} {[%emt 00:00:10]} 24. a4 {[%clk 00:30:45]}
{[%emt 00:00:26]} Bf6 {[%clk 00:56:24]} {[%emt 00:00:21]} 25. Rcd1 {[%clk
00:28:30]} {[%emt 00:02:45]} Nf4 {[%clk 00:56:15]} {[%emt 00:00:40]} 26. b5
{[%clk 00:21:21]} {[%emt 00:07:40]} Nd3 {[%clk 00:55:29]} {[%emt 00:01:16]} 27.
Re2 {[%clk 00:21:41]} {[%emt 00:00:09]} Bxd4 {[%clk 00:54:35]} {[%emt
00:01:25]} 28. cxd4 {[%clk 00:21:52]} {[%emt 00:00:19]} Nxb2 {[%clk 00:54:38]}
{[%emt 00:00:27]} 29. Rxb2 {[%clk 00:22:16]} {[%emt 00:00:05]} Kf8 {[%clk
00:53:44]} {[%emt 00:01:24]} 30. Kf1 {[%clk 00:22:39]} {[%emt 00:00:08]} Ke7
{[%clk 00:54:03]} {[%emt 00:00:11]} 31. Ke2 {[%clk 00:23:05]} {[%emt 00:00:04]}
Rab8 {[%clk 00:50:19]} {[%emt 00:04:14]} 32. f4 {[%clk 00:21:51]} {[%emt
00:01:45]} Rc7 {[%clk 00:48:56]} {[%emt 00:01:52]} 33. g3 {[%clk 00:20:37]}
{[%emt 00:01:43]} Rcb7 {[%clk 00:46:02]} {[%emt 00:03:25]} 34. Rdb1 {[%clk
00:20:33]} {[%emt 00:00:34]} Kd6 {[%clk 00:41:07]} {[%emt 00:05:26]} 35. a5
{[%clk 00:17:35]} {[%emt 00:03:28]} c3 {[%clk 00:41:01]} {[%emt 00:00:35]} 36.
a6 {[%clk 00:16:37]} {[%emt 00:01:29]} Rb6 {[%clk 00:38:54]} {[%emt 00:02:38]}
37. Rc2 {[%clk 00:14:35]} {[%emt 00:02:31]} Rxb5 {[%clk 00:39:07]} {[%emt
00:00:17]} 38. Rxb5 {[%clk 00:14:58]} {[%emt 00:00:08]} Rxb5 {[%clk 00:39:30]}
{[%emt 00:00:06]} 39. Rxc3 {[%clk 00:15:26]} {[%emt 00:00:02]} Ra5 {[%clk
00:39:26]} {[%emt 00:00:34]} 40. Rc8 {[%clk 00:15:13]} {[%emt 00:00:43]} Rxa6
{[%clk 00:39:43]} {[%emt 00:00:13]} 41. Rg8 {[%clk 00:15:33]} {[%emt 00:00:09]}
g6 {[%clk 00:40:04]} {[%emt 00:00:09]} 42. Rg7 {[%clk 00:16:01]} {[%emt
00:00:03]} Ra2+ {[%clk 00:40:18]} {[%emt 00:00:15]} 43. Kf3 {[%clk 00:16:26]}
{[%emt 00:00:05]} Rxh2 {[%clk 00:40:39]} {[%emt 00:00:09]} 44. Rxf7 {[%clk
00:16:53]} {[%emt 00:00:03]} a5 {[%clk 00:38:55]} {[%emt 00:02:14]} 45. Ra7
{[%clk 00:17:14]} {[%emt 00:00:09]} a4 {[%clk 00:38:39]} {[%emt 00:00:45]} 46.
Rxa4 {[%clk 00:17:26]} {[%emt 00:00:19]} Ke7 {[%clk 00:39:03]} {[%emt
00:00:05]} 47. Kg4 {[%clk 00:17:03]} {[%emt 00:00:53]} Kf6 {[%clk 00:39:24]}
{[%emt 00:00:09]} 48. Ra8 {[%clk 00:17:24]} {[%emt 00:00:09]} Rd2 {[%clk
00:37:37]} {[%emt 00:02:17]} 49. Ra4 {[%clk 00:17:35]} {[%emt 00:00:19]} h5+
{[%clk 00:37:01]} {[%emt 00:01:06]} 50. Kf3 {[%clk 00:17:59]} {[%emt 00:00:07]}
Rd3+ {[%clk 00:37:14]} {[%emt 00:00:17]} 51. Kg2 {[%clk 00:18:05]} {[%emt
00:00:23]} Kf5 {[%clk 00:37:38]} {[%emt 00:00:06]} 52. Kf2 {[%clk 00:16:45]}
{[%emt 00:01:50]} Kg4 {[%clk 00:37:04]} {[%emt 00:01:04]} 53. Ra6 {[%clk
00:16:34]} {[%emt 00:00:41]} Rxd4 {[%clk 00:36:39]} {[%emt 00:00:55]} 54. Rxe6
{[%clk 00:16:57]} {[%emt 00:00:07]} Kf5 {[%clk 00:36:37]} {[%emt 00:00:32]} 55.
Re5+ {[%clk 00:16:40]} {[%emt 00:00:48]} Kf6 {[%clk 00:36:53]} {[%emt
00:00:14]} 56. Re1 {[%emt 00:02:39]} Ra4 {[%clk 00:35:27]} 57. Re2 {[%clk
00:15:46]} {[%emt 00:01:10]} d4 {[%clk 00:35:14]} {[%emt 00:00:43]} 58. Re4
{[%clk 00:15:00]} {[%emt 00:01:16]} Ra2+ {[%clk 00:35:03]} {[%emt 00:00:41]} 59.
Kf3 {[%clk 00:14:59]} {[%emt 00:00:31]} Rd2 {[%clk 00:35:01]} {[%emt 00:00:33]}
60. Re1 {[%clk 00:14:32]} {[%emt 00:00:57]} Rd3+ {[%clk 00:34:32]} {[%emt
00:00:59]} 61. Kf2 {[%clk 00:14:29]} {[%emt 00:00:32]} Ra3 {[%clk 00:34:13]}
{[%emt 00:00:50]} 62. Rd1 {[%clk 00:13:51]} {[%emt 00:01:08]} d3 {[%clk
00:34:21]} {[%emt 00:00:23]} 63. Ke3 {[%clk 00:13:57]} {[%emt 00:00:23]} Kf5
{[%clk 00:34:39]} {[%emt 00:00:12]} 0-1

[Event "NJSK 2023 Jeugd C"]
[Site "Almelo, Netherlands"]
[Date "2023.05.06"]
[Round "10.1"]
[White "Wink, Luka"]
[Black "Van Batenburg, Mees"]
[Result "0-1"]
[TimeControl "90min/40moves + 30min + 30sec/move"]
[WhiteElo "1849"]
[BlackElo "2054"]

1. e4 {[%clk 00:05:05]} c5 {[%clk 00:05:06]} {[%emt 00:00:01]} 2. Nf3 {[%clk
00:05:07]} {[%emt 00:00:01]} Nc6 {[%clk 00:05:08]} {[%emt 00:00:01]} 3. d4
{[%clk 00:05:09]} cxd4 {[%clk 00:05:10]} 4. Nxd4 {[%clk 00:05:11]} {[%emt
00:00:01]} e5 {[%clk 00:05:12]} {[%emt 00:00:01]} 5. Nb5 {[%clk 00:05:14]}
{[%emt 00:00:01]} d6 {[%clk 00:05:14]} {[%emt 00:00:01]} 6. c4 {[%clk
00:05:16]} g6 {[%clk 00:05:08]} {[%emt 00:00:10]} 7. N1c3 {[%clk 00:05:18]} a6
{[%clk 00:05:10]} {[%emt 00:00:01]} 8. Na3 {[%clk 00:05:20]} {[%emt 00:00:01]}
Be6 {[%clk 00:05:11]} {[%emt 00:00:01]} 9. Bd3 {[%clk 00:05:22]} {[%emt
00:00:01]} Nf6 {[%clk 00:04:26]} {[%emt 00:00:49]} 10. Nc2 {[%clk 00:05:20]}
{[%emt 00:00:05]} h6 {[%clk 00:03:58]} {[%emt 00:00:31]} 11. O-O {[%clk
00:05:16]} {[%emt 00:00:06]} Bg7 {[%clk 00:04:00]} {[%emt 00:00:01]} 12. b3
{[%clk 00:05:13]} {[%emt 00:00:07]} O-O {[%clk 00:03:58]} {[%emt 00:00:05]} 13.
Bb2 {[%clk 00:05:13]} {[%emt 00:00:03]} Rc8 {[%clk 00:03:52]} {[%emt 00:00:09]}
14. Ne3 {[%clk 00:05:08]} {[%emt 00:00:07]} Ne8 {[%clk 00:03:45]} {[%emt
00:00:10]} 15. a4 {[%clk 00:05:00]} {[%emt 00:00:11]} Nd4 {[%clk 00:03:42]}
{[%emt 00:00:07]} 16. Ncd5 {[%clk 00:04:53]} {[%emt 00:00:10]} f5 {[%clk
00:03:05]} {[%emt 00:00:39]} 17. exf5 {[%clk 00:04:32]} {[%emt 00:00:24]} gxf5
{[%clk 00:03:00]} {[%emt 00:00:09]} 18. Bxd4 {[%clk 00:03:35]} {[%emt
00:01:00]} exd4 {[%clk 00:03:02]} {[%emt 00:00:01]} 19. Nc2 {[%clk 00:03:26]}
{[%emt 00:00:11]} Bxd5 {[%clk 00:02:43]} {[%emt 00:00:22]} 20. cxd5 {[%clk
00:03:28]} {[%emt 00:00:01]} Qa5 {[%clk 00:02:23]} {[%emt 00:00:23]} 21. Qe1
{[%clk 00:03:04]} {[%emt 00:00:26]} Qxe1 {[%clk 00:01:57]} {[%emt 00:00:30]} 22.
Rfxe1 {[%clk 00:03:06]} {[%emt 00:00:01]} Be5 {[%clk 00:01:45]} {[%emt
00:00:15]} 23. g3 {[%clk 00:02:52]} {[%emt 00:00:17]} Rc3 {[%clk 00:01:40]}
{[%emt 00:00:08]} 24. Rad1 {[%clk 00:02:34]} {[%emt 00:00:19]} Rxb3 {[%clk
00:01:38]} {[%emt 00:00:07]} 25. Bf1 {[%clk 00:02:29]} {[%emt 00:00:08]} f4
{[%clk 00:01:19]} {[%emt 00:00:23]} 26. Nxd4 {[%clk 00:02:25]} {[%emt
00:00:06]} Bxd4 {[%clk 00:01:10]} {[%emt 00:00:13]} 27. Rxd4 {[%clk 00:02:27]}
{[%emt 00:00:01]} fxg3 {[%clk 00:01:12]} 28. fxg3 {[%clk 00:01:34]} {[%emt
00:00:56]} Ng7 {[%clk 00:00:59]} {[%emt 00:00:17]} 29. Bh3 {[%clk 00:00:49]}
{[%emt 00:00:47]} Rb2 {[%clk 00:00:55]} {[%emt 00:00:08]} 30. Be6+ {[%clk
00:00:43]} {[%emt 00:00:09]} Kh7 {[%clk 00:00:52]} {[%emt 00:00:06]} 31. Rf1
{[%clk 00:00:45]} {[%emt 00:00:01]} Rxf1+ {[%clk 00:00:50]} {[%emt 00:00:04]}
32. Kxf1 {[%clk 00:00:47]} {[%emt 00:00:01]} Rxh2 {[%clk 00:00:52]} {[%emt
00:00:01]} 33. Rb4 {[%clk 00:00:46]} {[%emt 00:00:04]} Rh1+ {[%clk 00:00:50]}
{[%emt 00:00:05]} 34. Kg2 {[%clk 00:00:46]} {[%emt 00:00:02]} Ra1 {[%clk
00:00:52]} {[%emt 00:00:02]} 35. Bc8 {[%clk 00:00:35]} {[%emt 00:00:15]} a5
{[%clk 00:00:37]} {[%emt 00:00:18]} 36. Rc4 {[%clk 00:00:26]} {[%emt 00:00:12]}
b6 {[%clk 00:00:37]} {[%emt 00:00:03]} 37. Bd7 {[%clk 00:00:25]} {[%emt
00:00:03]} Rd1 {[%clk 00:00:36]} {[%emt 00:00:04]} 38. Bc6 {[%clk 00:00:27]}
{[%emt 00:00:01]} Nf5 {[%clk 00:00:36]} {[%emt 00:00:03]} 39. Rc3 {[%clk
00:00:23]} {[%emt 00:00:07]} Kg7 {[%clk 00:00:37]} {[%emt 00:00:03]} 40. Rb3
{[%clk 00:00:23]} {[%emt 00:00:03]} Kf6 {[%clk 00:00:35]} {[%emt 00:00:05]} 41.
Rxb6 {[%clk 00:00:23]} {[%emt 00:00:02]} Rd3 {[%clk 00:00:38]} {[%emt
00:00:01]} 42. g4 {[%clk 00:00:20]} {[%emt 00:00:05]} Rg3+ {[%clk 00:00:40]} 43.
Kf2 {[%clk 00:00:22]} {[%emt 00:00:01]} Rxg4 {[%clk 00:00:42]} {[%emt
00:00:01]} 44. Ra6 {[%clk 00:00:24]} {[%emt 00:00:02]} h5 {[%clk 00:00:38]}
{[%emt 00:00:07]} 45. Rxa5 {[%clk 00:00:25]} {[%emt 00:00:02]} h4 {[%clk
00:00:40]} 46. Ra8 {[%clk 00:00:26]} {[%emt 00:00:02]} h3 {[%clk 00:00:42]}
{[%emt 00:00:01]} 47. Rh8 {[%clk 00:00:24]} {[%emt 00:00:04]} Rg2+ {[%clk
00:00:17]} {[%emt 00:00:29]} 48. Kf1 {[%clk 00:00:25]} {[%emt 00:00:02]} Ng3+
{[%clk 00:00:19]} {[%emt 00:00:01]} 49. Ke1 {[%clk 00:00:26]} {[%emt 00:00:02]}
h2 {[%emt 00:00:01]} 50. a5 {[%clk 00:00:19]} {[%emt 00:00:10]} h1=Q+ {[%clk
00:00:23]} {[%emt 00:00:01]} 51. Rxh1 {[%clk 00:00:21]} {[%emt 00:00:01]} Nxh1
{[%clk 00:00:25]} {[%emt 00:00:01]} 52. a6 {[%clk 00:00:24]} Ra2 {[%clk
00:00:27]} {[%emt 00:00:01]} 53. Bb7 {[%clk 00:00:25]} {[%emt 00:00:02]} Ng3
{[%clk 00:00:29]} {[%emt 00:00:01]} 54. Kd1 {[%clk 00:00:26]} {[%emt 00:00:01]}
Ne4 {[%clk 00:00:31]} {[%emt 00:00:02]} 55. Ke1 {[%clk 00:00:28]} {[%emt
00:00:01]} Nc5 {[%clk 00:00:33]} {[%emt 00:00:01]} 56. Kf1 {[%clk 00:00:22]}
{[%emt 00:00:08]} Nxb7 {[%clk 00:00:35]} {[%emt 00:00:02]} 0-1

[Event "NJSK 2023 Jeugd C"]
[Site "Almelo, Netherlands"]
[Date "2023.05.06"]
[Round "11.1"]
[White "Madularea, David"]
[Black "Wink, Luka"]
[Result "1-0"]
[TimeControl "90min/40moves + 30min + 30sec/move"]
[WhiteElo "1895"]
[BlackElo "1849"]

1. Nf3 {[%clk 00:05:04]} {[%emt 00:00:03]} d5 {[%clk 00:05:04]} {[%emt
00:00:04]} 2. g3 {[%clk 00:05:06]} {[%emt 00:00:01]} c5 {[%clk 00:05:06]}
{[%emt 00:00:02]} 3. Bg2 {[%clk 00:05:08]} Nc6 {[%clk 00:05:08]} 4. O-O {[%clk
00:05:10]} {[%emt 00:00:01]} e5 {[%clk 00:05:10]} {[%emt 00:00:01]} 5. d3
{[%clk 00:05:12]} Nf6 {[%clk 00:05:09]} {[%emt 00:00:04]} 6. Nbd2 {[%clk
00:05:14]} {[%emt 00:00:01]} Be7 {[%clk 00:05:10]} {[%emt 00:00:01]} 7. e4
{[%clk 00:05:16]} dxe4 {[%clk 00:05:10]} {[%emt 00:00:04]} 8. dxe4 {[%clk
00:05:18]} {[%emt 00:00:01]} Be6 {[%clk 00:05:04]} {[%emt 00:00:09]} 9. c3
{[%clk 00:05:20]} {[%emt 00:00:01]} O-O {[%clk 00:05:04]} {[%emt 00:00:03]} 10.
Qc2 {[%clk 00:05:16]} {[%emt 00:00:07]} Qc7 {[%clk 00:05:02]} {[%emt 00:00:04]}
11. a4 {[%clk 00:05:11]} {[%emt 00:00:08]} a6 {[%clk 00:05:02]} {[%emt
00:00:04]} 12. Re1 {[%clk 00:05:02]} {[%emt 00:00:12]} b5 {[%clk 00:05:02]}
{[%emt 00:00:03]} 13. Ng5 {[%clk 00:04:43]} {[%emt 00:00:21]} Bd7 {[%clk
00:04:48]} {[%emt 00:00:17]} 14. Bf1 {[%clk 00:04:38]} {[%emt 00:00:08]} Qb7
{[%clk 00:04:33]} {[%emt 00:00:18]} 15. Qb3 {[%clk 00:04:22]} {[%emt 00:00:19]}
b4 {[%clk 00:04:23]} {[%emt 00:00:13]} 16. a5 {[%clk 00:03:58]} {[%emt
00:00:28]} h6 {[%clk 00:04:22]} {[%emt 00:00:04]} 17. Ngf3 {[%clk 00:03:51]}
{[%emt 00:00:09]} Qc7 {[%clk 00:04:22]} {[%emt 00:00:04]} 18. Qa2 {[%clk
00:03:22]} {[%emt 00:00:32]} Bd8 {[%clk 00:04:02]} {[%emt 00:00:22]} 19. cxb4
{[%clk 00:03:07]} {[%emt 00:00:18]} cxb4 {[%clk 00:04:05]} 20. b3 {[%clk
00:02:37]} {[%emt 00:00:33]} Qxa5 {[%clk 00:03:47]} {[%emt 00:00:22]} 21. Qxa5
{[%clk 00:02:29]} {[%emt 00:00:11]} Nxa5 {[%clk 00:03:42]} {[%emt 00:00:08]} 22.
Nxe5 {[%clk 00:02:30]} {[%emt 00:00:02]} Be6 {[%clk 00:03:34]} {[%emt
00:00:11]} 23. Bc4 {[%clk 00:02:19]} {[%emt 00:00:14]} Nxc4 {[%clk 00:03:28]}
{[%emt 00:00:08]} 24. Ndxc4 {[%clk 00:02:20]} {[%emt 00:00:02]} Bc7 {[%clk
00:03:16]} {[%emt 00:00:15]} 25. Re3 {[%clk 00:01:43]} {[%emt 00:00:39]} Rfd8
{[%clk 00:02:34]} {[%emt 00:00:46]} 26. Bb2 {[%clk 00:01:43]} {[%emt 00:00:03]}
Nd7 {[%clk 00:02:17]} {[%emt 00:00:20]} 27. Nc6 {[%clk 00:01:28]} {[%emt
00:00:17]} Re8 {[%clk 00:01:55]} {[%emt 00:00:26]} 28. Nxb4 {[%emt 00:00:17]}
Nc5 {[%clk 00:01:44]} 29. Rc1 {[%clk 00:01:09]} {[%emt 00:00:21]} a5 {[%clk
00:01:28]} {[%emt 00:00:19]} 30. Nd5 {[%clk 00:00:51]} {[%emt 00:00:21]} Bxd5
{[%clk 00:01:17]} {[%emt 00:00:14]} 31. exd5 {[%clk 00:00:53]} {[%emt
00:00:01]} Rxe3 {[%clk 00:01:15]} {[%emt 00:00:05]} 32. Nxe3 {[%clk 00:00:42]}
{[%emt 00:00:14]} Bd6 {[%clk 00:01:09]} {[%emt 00:00:09]} 33. Nf5 {[%clk
00:00:31]} {[%emt 00:00:13]} Bf8 {[%clk 00:01:11]} {[%emt 00:00:01]} 34. Rc3
{[%clk 00:00:14]} {[%emt 00:00:20]} Rb8 {[%clk 00:00:33]} {[%emt 00:00:41]} 35.
Nd4 {[%clk 00:00:10]} {[%emt 00:00:08]} a4 {[%clk 00:00:16]} {[%emt 00:00:20]}
36. Kg2 {[%clk 00:00:07]} {[%emt 00:00:06]} Nxb3 {[%clk 00:00:10]} {[%emt
00:00:09]} 37. Nxb3 {[%clk 00:00:08]} {[%emt 00:00:02]} Rxb3 {[%clk 00:00:08]}
{[%emt 00:00:04]} 38. Rxb3 {[%clk 00:00:08]} {[%emt 00:00:04]} axb3 {[%clk
00:00:11]} 39. Kf3 {[%clk 00:00:09]} {[%emt 00:00:01]} Bc5 {[%clk 00:00:07]}
{[%emt 00:00:06]} 40. Ke2 {[%clk 00:00:08]} {[%emt 00:00:05]} Kf8 {[%clk
00:00:08]} {[%emt 00:00:02]} 41. f4 {[%clk 00:00:10]} {[%emt 00:00:01]} Ke7
{[%clk 00:00:08]} {[%emt 00:00:03]} 42. Kd3 {[%clk 00:00:12]} {[%emt 00:00:01]}
f6 {[%clk 00:00:07]} {[%emt 00:00:04]} 43. Kc4 {[%clk 00:00:14]} {[%emt
00:00:01]} Bg1 {[%clk 00:00:10]} {[%emt 00:00:01]} 44. h3 {[%clk 00:00:16]} Bh2
{[%clk 00:00:12]} {[%emt 00:00:01]} 45. Kxb3 {[%clk 00:00:16]} {[%emt
00:00:04]} Bxg3 {[%clk 00:00:14]} {[%emt 00:00:01]} 46. f5 {[%clk 00:00:18]}
{[%emt 00:00:01]} Kd6 {[%clk 00:00:15]} {[%emt 00:00:02]} 47. Kc4 {[%clk
00:00:19]} {[%emt 00:00:01]} Be5 {[%clk 00:00:14]} {[%emt 00:00:03]} 48. Ba3+
{[%clk 00:00:20]} {[%emt 00:00:03]} Kd7 {[%clk 00:00:15]} {[%emt 00:00:02]} 49.
Kd3 {[%clk 00:00:21]} {[%emt 00:00:02]} Bc7 {[%clk 00:00:11]} {[%emt 00:00:08]}
50. Ke4 {[%clk 00:00:21]} {[%emt 00:00:02]} Be5 {[%clk 00:00:13]} {[%emt
00:00:01]} 51. Kf3 {[%clk 00:00:23]} {[%emt 00:00:01]} h5 {[%clk 00:00:12]}
{[%emt 00:00:04]} 52. Bf8 {[%clk 00:00:24]} {[%emt 00:00:02]} Bc3 {[%clk
00:00:09]} {[%emt 00:00:05]} 53. Bxg7 {[%clk 00:00:24]} {[%emt 00:00:04]} Kd6
{[%clk 00:00:12]} 54. Ke4 {[%clk 00:00:26]} {[%emt 00:00:01]} Be5 {[%clk
00:00:13]} {[%emt 00:00:03]} 55. Bf8+ {[%clk 00:00:26]} {[%emt 00:00:02]} Kd7
{[%clk 00:00:15]} {[%emt 00:00:01]} 56. Bc5 {[%clk 00:00:27]} {[%emt 00:00:03]}
h4 {[%clk 00:00:16]} {[%emt 00:00:01]} 57. Bd4 {[%clk 00:00:24]} {[%emt
00:00:05]} Kd6 {[%clk 00:00:16]} {[%emt 00:00:04]} 58. Bxe5+ {[%clk 00:00:24]}
{[%emt 00:00:03]} fxe5 {[%clk 00:00:17]} {[%emt 00:00:01]} 59. f6 {[%clk
00:00:27]} {[%emt 00:00:01]} 1-0

[Event "NJSK 2023 Jeugd C"]
[Site "Almelo, Netherlands"]
[Date "2023.05.06"]
[Round "12.1"]
[White "Van Batenburg, Mees"]
[Black "Madularea, David"]
[Result "1-0"]
[TimeControl "90min/40moves + 30min + 30sec/move"]
[WhiteElo "2054"]
[BlackElo "1895"]

1. d4 {[%clk 00:05:04]} {[%emt 00:00:02]} Nf6 {[%clk 00:05:05]} {[%emt
00:00:01]} 2. Nc3 {[%clk 00:05:07]} d5 {[%clk 00:05:08]} {[%emt 00:00:01]} 3.
Bf4 {[%clk 00:05:09]} g6 {[%clk 00:05:10]} {[%emt 00:00:01]} 4. e3 {[%clk
00:05:11]} Bg7 {[%emt 00:00:02]} 5. h4 {[%clk 00:05:11]} {[%emt 00:00:02]} h5
{[%clk 00:05:14]} {[%emt 00:00:01]} 6. Nf3 {[%clk 00:05:13]} {[%emt 00:00:01]}
O-O {[%clk 00:05:14]} {[%emt 00:00:03]} 7. Qd2 {[%clk 00:05:13]} {[%emt
00:00:03]} Bf5 {[%clk 00:05:08]} {[%emt 00:00:08]} 8. O-O-O {[%clk 00:05:10]}
{[%emt 00:00:07]} a6 {[%clk 00:05:08]} {[%emt 00:00:03]} 9. Ng5 {[%clk
00:05:10]} {[%emt 00:00:03]} c5 {[%clk 00:05:03]} {[%emt 00:00:08]} 10. dxc5
{[%clk 00:04:29]} {[%emt 00:00:42]} e6 {[%clk 00:05:04]} {[%emt 00:00:03]} 11.
Bd6 {[%clk 00:04:31]} {[%emt 00:00:01]} Re8 {[%clk 00:04:58]} {[%emt 00:00:09]}
12. Kb1 {[%clk 00:04:31]} {[%emt 00:00:03]} b6 {[%clk 00:04:23]} {[%emt
00:00:37]} 13. f3 {[%clk 00:04:24]} {[%emt 00:00:11]} Nbd7 {[%clk 00:04:13]}
{[%emt 00:00:13]} 14. c6 {[%clk 00:03:56]} {[%emt 00:00:31]} Nc5 {[%clk
00:04:06]} {[%emt 00:00:11]} 15. Bxc5 {[%clk 00:03:56]} {[%emt 00:00:03]} bxc5
{[%clk 00:04:08]} 16. e4 {[%clk 00:03:53]} {[%emt 00:00:07]} dxe4 {[%clk
00:04:03]} {[%emt 00:00:07]} 17. Qxd8 {[%clk 00:03:53]} {[%emt 00:00:02]} Rexd8
{[%clk 00:04:03]} {[%emt 00:00:03]} 18. Rxd8+ {[%clk 00:03:55]} {[%emt
00:00:01]} Rxd8 {[%clk 00:04:05]} {[%emt 00:00:01]} 19. fxe4 {[%clk 00:03:57]}
{[%emt 00:00:01]} Nxe4 {[%clk 00:04:03]} {[%emt 00:00:06]} 20. Ngxe4 {[%clk
00:03:29]} {[%emt 00:00:30]} Bxe4 {[%clk 00:04:04]} {[%emt 00:00:02]} 21. c7
{[%clk 00:03:31]} {[%emt 00:00:01]} Rc8 {[%clk 00:03:47]} {[%emt 00:00:20]} 22.
Nxe4 {[%clk 00:03:33]} {[%emt 00:00:01]} Rxc7 {[%clk 00:03:49]} {[%emt
00:00:01]} 23. Bxa6 {[%clk 00:03:34]} {[%emt 00:00:02]} Rd7 {[%clk 00:03:37]}
{[%emt 00:00:14]} 24. Nxc5 {[%clk 00:03:12]} {[%emt 00:00:26]} Rd2 {[%clk
00:03:38]} {[%emt 00:00:02]} 25. Bd3 {[%clk 00:03:12]} {[%emt 00:00:03]} Rxg2
{[%clk 00:03:32]} {[%emt 00:00:09]} 26. a4 {[%clk 00:02:56]} {[%emt 00:00:19]}
Bd4 {[%clk 00:03:33]} {[%emt 00:00:02]} 27. Ne4 {[%clk 00:02:57]} {[%emt
00:00:02]} f5 {[%clk 00:03:30]} {[%emt 00:00:05]} 28. Ng5 {[%clk 00:02:59]}
{[%emt 00:00:02]} e5 {[%clk 00:03:27]} {[%emt 00:00:06]} 29. Nf3 {[%clk
00:02:46]} {[%emt 00:00:16]} Rf2 {[%clk 00:03:02]} {[%emt 00:00:28]} 30. Nxd4
{[%clk 00:02:46]} {[%emt 00:00:03]} exd4 {[%clk 00:03:04]} {[%emt 00:00:01]} 31.
a5 {[%clk 00:02:48]} {[%emt 00:00:02]} 1-0